fUSD/lending_fUSD_20240804
["ID","MTS","AMOUNT","RATE_DAILY","PERIOD"]
[334094794,1722765043649,-151.0,0.00023551,7]
[334094796,1722765043658,-245.561077,0.00023551,7]
[334094798,1722765043668,-151.0,0.00023551,7]
[334094799,1722765043677,-278.937907,0.00023551,7]
[334094801,1722765043687,-349.600764,0.00023551,7]
[334094803,1722765043696,-349.600764,0.00023551,7]
[334094805,1722765043706,-151.0,0.00023551,7]
[334094807,1722765043715,-151.0,0.00023551,7]
[334094809,1722765043724,-292.879178,0.00023551,7]
[334094811,1722765043734,-791.735581,0.00023551,7]
[334094813,1722765043744,-791.735581,0.00023551,7]
[334094814,1722765043753,-151.0,0.00023551,7]
[334094815,1722765043763,-151.0,0.00023551,7]
[334094816,1722765043773,-325.319464,0.00023551,7]
[334094817,1722765043782,-325.319464,0.00023551,7]
[334094818,1722765043793,-152.304178,0.00023551,7]
[334094819,1722765043802,-152.304178,0.00023551,7]
[334094820,1722765043813,-151.0,0.00023551,7]
[334094821,1722765043822,-203.65,0.00023551,7]
[334094822,1722765043832,-203.65,0.00023551,7]
[334094823,1722765043842,-479.899972,0.00023551,7]
[334094825,1722765043852,-151.0,0.00023551,7]
[334094827,1722765043861,-479.899972,0.00023551,7]
[334094829,1722765043870,-593.762654,0.00023551,7]
[334094831,1722765043880,-151.0,0.00023551,7]
[334094832,1722765043889,-593.762654,0.00023551,7]
[334094834,1722765043898,-236.233761,0.00023551,7]
[334094836,1722765043907,-236.233761,0.00023551,7]
[334094838,1722765043916,-218.170873,0.00023551,7]
[334094840,1722765043926,-151.0,0.00023551,7]
[334094842,1722765043935,-218.170873,0.00023551,7]
[334094843,1722765043944,-151.0,0.00023551,7]
[334094845,1722765043954,-163.742897,0.00023551,7]
[334094847,1722765043963,-163.742897,0.00023551,7]
[334094849,1722765043972,-279.290271,0.00023551,7]
[334094851,1722765043982,-279.290271,0.00023551,7]
[334094853,1722765043991,-151.0,0.00023551,7]
[334094855,1722765044001,-151.0,0.00023551,7]
[334094857,1722765044012,-151.0,0.00023551,7]
[334094860,1722765044022,-201.431313,0.00023551,7]
[334094861,1722765044032,-201.431313,0.00023551,7]
[334094864,1722765044043,-1600.583935,0.00023551,7]
[334094865,1722765044052,-1600.583935,0.00023551,7]
[334094867,1722765044061,-151.0,0.00023551,7]
[334094869,1722765044071,-151.0,0.00023551,7]
[334094871,1722765044081,-286.649151,0.00023551,7]
[334094873,1722765044091,-151.0,0.00023551,7]
[334094875,1722765044102,-151.0,0.00023551,7]
[334094877,1722765044111,-178.815353,0.00023551,7]
[334094879,1722765044121,-178.815353,0.00023551,7]
[334094881,1722765044130,-1586.097472,0.00023551,7]
[334094883,1722765044139,-151.968898,0.00023551,7]
[334094885,1722765044149,-1586.097472,0.00023551,7]
[334094887,1722765044158,-151.0,0.00023551,7]
[334094889,1722765044168,-288.134782,0.00023551,7]
[334094891,1722765044177,-288.134782,0.00023551,7]
[334094893,1722765044186,-321.751671,0.00023551,7]
[334094895,1722765044196,-321.751671,0.00023551,7]
[334094897,1722765044205,-151.0,0.00023551,7]
[334094899,1722765044215,-151.0,0.00023551,7]
[334094901,1722765044224,-151.0,0.00023551,7]
[334094902,1722765044233,-151.0,0.00023551,7]
[334094904,1722765044242,-10984.0382541,0.00023551,3]
[334094906,1722765044252,-151.0,0.00023561,7]
[334094908,1722765044261,-550.369978,0.00023561,7]
[334094910,1722765044272,-550.369978,0.00023561,7]
[334094912,1722765044281,-247.094387,0.00023561,7]
[334094914,1722765044293,-247.094387,0.00023561,7]
[334094916,1722765044307,-791.735581,0.00023561,7]
[334094917,1722765044316,-791.735581,0.00023561,7]
[334094919,1722765044325,-151.0,0.00023561,7]
[334094921,1722765044335,-151.0,0.00023561,7]
[334094923,1722765044345,-325.319464,0.00023561,7]
[334094925,1722765044355,-325.319464,0.00023561,7]
[334094927,1722765044364,-152.304178,0.00023561,7]
[334094929,1722765044376,-152.304178,0.00023561,7]
[334094931,1722765044387,-151.0,0.00023561,7]
[334094933,1722765044396,-203.65,0.00023561,7]
[334094935,1722765044406,-203.65,0.00023561,7]
[334094937,1722765044415,-479.899972,0.00023561,7]
[334094938,1722765044425,-151.0,0.00023561,7]
[334094940,1722765044434,-479.899972,0.00023561,7]
[334094942,1722765044444,-593.762654,0.00023561,7]
[334094944,1722765044454,-151.0,0.00023561,7]
[334094945,1722765044463,-593.762654,0.00023561,7]
[334094946,1722765044474,-236.233761,0.00023561,7]
[334094947,1722765044483,-236.233761,0.00023561,7]
[334094948,1722765044492,-218.170873,0.00023561,7]
[334094949,1722765044502,-218.170873,0.00023561,7]
[334094950,1722765044511,-163.742897,0.00023561,7]
[334094951,1722765044521,-163.742897,0.00023561,7]
[334094952,1722765044530,-17485.7236736,0.00023592,3]
[334094953,1722765044543,-213.267282,0.00023602,7]
[334094954,1722765044552,-151.0,0.00023602,7]
[334094955,1722765044562,-750.930686,0.00023602,7]
[334094957,1722765044571,-415.859374,0.00023602,7]
[334094959,1722765044581,-213.267282,0.00023602,7]
[334094961,1722765044591,-415.859374,0.00023602,7]
[334094963,1722765044602,-151.0,0.00023602,7]
[334094965,1722765044612,-151.0,0.00023602,7]
[334094966,1722765044621,-151.0,0.00023602,7]
[334094968,1722765044630,-5423.38553,0.00023602,7]
[334094970,1722765044639,-1066.622341,0.00023602,7]
[334094972,1722765044648,-1066.622341,0.00023602,7]
[334094974,1722765044657,-704.566519,0.00023602,7]
[334094976,1722765044667,-704.566519,0.00023602,7]
[334094978,1722765044677,-4920.64645876,0.00023602,2]
[334094980,1722765044686,-150.0,0.00023648,2]
[334094982,1722765044695,-10984.0382541,0.00023716,3]
[334094984,1722765044705,-4242.91652478,0.00023726,10]
[334094986,1722765044715,-1165.95072059,0.00023726,10]
[334094988,1722765044724,-158.91577489,0.00023726,10]
[334094990,1722765044734,-158.0,0.00023813,2]
[334094992,1722765044743,-10984.0382541,0.0002384,3]
[334094994,1722765044753,-1774.992525,0.0002386,7]
[334094995,1722765044762,-1774.992525,0.0002386,7]
[334094997,1722765044771,-17485.7236736,0.0002386,3]
[334094999,1722765044781,-151.0,0.00023861,7]
[334095001,1722765044792,-151.0,0.00023861,7]
[334095003,1722765044801,-253.99308,0.00023861,7]
[334095005,1722765044812,-151.0,0.00023861,7]
[334095007,1722765044822,-151.0,0.00023861,7]
[334095009,1722765044832,-151.0,0.0002387,7]
[334095012,1722765044842,-151.0,0.0002387,7]
[334095014,1722765044851,-349.600764,0.0002387,7]
[334095015,1722765044860,-349.600764,0.0002387,7]
[334095017,1722765044870,-151.0,0.0002387,7]
[334095019,1722765044879,-151.0,0.0002387,7]
[334095021,1722765044889,-151.0,0.0002387,7]
[334095023,1722765044899,-151.0,0.0002387,7]
[334095025,1722765044908,-7285.1461,0.0002387,2]
[334095027,1722765044918,-10984.0382541,0.0002387,3]
[334095029,1722765044927,-522.42518221,0.00023873,2]
[334095031,1722765044936,-217.0,0.0002388,2]
[334095033,1722765044946,-10984.0382541,0.0002389,3]
[334095035,1722765044956,-17485.7236736,0.0002389,3]
[334095037,1722765044965,-151.0,0.0002389,7]
[334095039,1722765044975,-288.134782,0.0002389,7]
[334095041,1722765044984,-288.134782,0.0002389,7]
[334095043,1722765044993,-321.751671,0.0002389,7]
[334095045,1722765045003,-321.751671,0.0002389,7]
[334095047,1722765045013,-151.0,0.0002389,7]
[334095049,1722765045023,-151.0,0.0002389,7]
[334095051,1722765045032,-151.0,0.0002389,7]
[334095053,1722765045043,-1000.0,0.0002389,2]
[334095055,1722765045053,-256.0,0.000239,2]
[334095057,1722765045063,-256.0,0.000239,2]
[334095058,1722765045073,-151.0,0.000239,7]
[334095060,1722765045083,-494.0,0.000239,7]
[334095061,1722765045092,-151.0,0.000239,7]
[334095062,1722765045101,-202.080334,0.000239,7]
[334095063,1722765045110,-279.290271,0.000239,7]
[334095064,1722765045119,-279.290271,0.000239,7]
[334095065,1722765045129,-201.156738,0.000239,7]
[334095066,1722765045138,-151.0,0.000239,7]
[334095067,1722765045148,-291.072835,0.000239,7]
[334095068,1722765045157,-201.431313,0.000239,7]
[334095069,1722765045166,-201.431313,0.000239,7]
[334095070,1722765045176,-1600.583935,0.000239,7]
[334095071,1722765045185,-1600.583935,0.000239,7]
[334095072,1722765045195,-151.0,0.000239,7]
[334095073,1722765045204,-151.0,0.000239,7]
[334095074,1722765045213,-271.791508,0.000239,7]
[334095075,1722765045223,-280.086834,0.000239,7]
[334095076,1722765045233,-178.815353,0.000239,7]
[334095077,1722765045242,-178.815353,0.000239,7]
[334095078,1722765045250,-1586.097472,0.000239,7]
[334095079,1722765045259,-1586.097472,0.000239,7]
[334095080,1722765045268,-5423.38553,0.000239,7]
[334095081,1722765045278,-1066.622341,0.000239,7]
[334095082,1722765045287,-1066.622341,0.000239,7]
[334095083,1722765045300,-704.566519,0.000239,7]
[334095084,1722765045309,-704.566519,0.000239,7]
[334095085,1722765045319,-169.51300803,0.000239,2]
[334095087,1722765045328,-2241.33897708,0.000239,2]
[334095088,1722765045338,-1000.0,0.000239,2]
[334095089,1722765045347,-885.25894522,0.000239,2]
[334095090,1722765045355,-17485.7236736,0.0002392,3]
[334095091,1722765045364,-10984.0382541,0.00023922,3]
[334095092,1722765045374,-10984.0382541,0.00023931,3]
[334095093,1722765045384,-213.267282,0.00023932,7]
[334095094,1722765045393,-151.0,0.00023932,7]
[334095095,1722765045402,-750.930686,0.00023932,7]
[334095096,1722765045411,-415.859374,0.00023932,7]
[334095097,1722765045421,-213.267282,0.00023932,7]
[334095098,1722765045430,-415.859374,0.00023932,7]
[334095099,1722765045439,-151.0,0.00023932,7]
[334095100,1722765045448,-151.0,0.00023932,7]
[334095101,1722765045457,-151.0,0.00023932,7]
[334095102,1722765045467,-10984.0382541,0.0002394,3]
[334095103,1722765045476,-17485.7236736,0.0002394,3]
[334095104,1722765045486,-1774.992525,0.00023942,7]
[334095105,1722765045495,-1774.992525,0.00023942,7]
[334095106,1722765045504,-151.0,0.00023948,7]
[334095107,1722765045514,-151.0,0.00023948,7]
[334095108,1722765045523,-151.0,0.00023948,7]
[334095109,1722765045532,-151.0,0.00023948,7]
[334095110,1722765045543,-272.708173,0.0002395,7]
[334095111,1722765045552,-151.0,0.0002395,7]
[334095112,1722765045561,-10984.0382541,0.0002395,3]
[334095113,1722765045571,-17485.7236736,0.0002395,3]
[334095114,1722765045580,-151.0,0.0002395,7]
[334095115,1722765045589,-288.134782,0.0002395,7]
[334095116,1722765045600,-288.134782,0.0002395,7]
[334095117,1722765045609,-321.751671,0.0002395,7]
[334095118,1722765045619,-321.751671,0.0002395,7]
[334095119,1722765045628,-214.053617,0.0002395,7]
[334095120,1722765045637,-151.0,0.0002395,7]
[334095121,1722765045647,-10984.0382541,0.0002395,3]
[334095122,1722765045656,-791.735581,0.00023952,7]
[334095123,1722765045666,-791.735581,0.00023952,7]
[334095124,1722765045675,-151.0,0.00023952,7]
[334095125,1722765045684,-288.549571,0.00023952,7]
[334095126,1722765045693,-325.319464,0.00023952,7]
[334095127,1722765045702,-325.319464,0.00023952,7]
[334095128,1722765045712,-152.304178,0.00023952,7]
[334095129,1722765045722,-152.304178,0.00023952,7]
[334095130,1722765045731,-151.0,0.00023952,7]
[334095131,1722765045740,-203.65,0.00023952,7]
[334095132,1722765045750,-203.65,0.00023952,7]
[334095133,1722765045759,-479.899972,0.00023952,7]
[334095134,1722765045769,-151.0,0.00023952,7]
[334095135,1722765045778,-479.899972,0.00023952,7]
[334095136,1722765045790,-593.762654,0.00023952,7]
[334095137,1722765045800,-151.0,0.00023952,7]
[334095138,1722765045811,-593.762654,0.00023952,7]
[334095139,1722765045820,-236.233761,0.00023952,7]
[334095140,1722765045829,-236.233761,0.00023952,7]
[334095141,1722765045838,-218.170873,0.00023952,7]
[334095142,1722765045847,-218.170873,0.00023952,7]
[334095143,1722765045856,-163.742897,0.00023952,7]
[334095144,1722765045865,-163.742897,0.00023952,7]
[334095145,1722765045875,-5423.38553,0.00023952,7]
[334095146,1722765045884,-1066.622341,0.00023952,7]
[334095147,1722765045893,-1066.622341,0.00023952,7]
[334095148,1722765045902,-704.566519,0.00023952,7]
[334095149,1722765045912,-704.566519,0.00023952,7]
[334095150,1722765045923,-151.0,0.0002396,7]
[334095151,1722765045933,-550.369978,0.0002396,7]
[334095152,1722765045942,-550.369978,0.0002396,7]
[334095153,1722765045951,-247.094387,0.0002396,7]
[334095154,1722765045960,-247.094387,0.0002396,7]
[334095155,1722765045969,-151.0,0.0002396,7]
[334095156,1722765045978,-151.0,0.0002396,7]
[334095157,1722765045987,-349.600764,0.0002396,7]
[334095159,1722765045998,-349.600764,0.0002396,7]
[334095161,1722765046009,-151.0,0.0002396,7]
[334095163,1722765046020,-151.0,0.0002396,7]
[334095165,1722765046030,-151.0,0.0002396,7]
[334095167,1722765046045,-200.449673,0.0002396,7]
[334095169,1722765046059,-279.290271,0.0002396,7]
[334095171,1722765046068,-279.290271,0.0002396,7]
[334095173,1722765046078,-151.0,0.0002396,7]
[334095175,1722765046087,-201.431313,0.0002396,7]
[334095177,1722765046097,-201.431313,0.0002396,7]
[334095178,1722765046107,-1600.583935,0.0002396,7]
[334095179,1722765046116,-1600.583935,0.0002396,7]
[334095180,1722765046126,-178.815353,0.0002396,7]
[334095181,1722765046136,-178.815353,0.0002396,7]
[334095182,1722765046146,-1586.097472,0.0002396,7]
[334095183,1722765046155,-1586.097472,0.0002396,7]
[334095184,1722765046164,-213.267282,0.0002396,7]
[334095185,1722765046175,-151.0,0.0002396,7]
[334095186,1722765046184,-750.930686,0.0002396,7]
[334095187,1722765046194,-415.859374,0.0002396,7]
[334095188,1722765046203,-213.267282,0.0002396,7]
[334095189,1722765046213,-415.859374,0.0002396,7]
[334095190,1722765046222,-151.0,0.0002396,7]
[334095191,1722765046231,-151.0,0.0002396,7]
[334095192,1722765046241,-151.0,0.0002396,7]
[334095193,1722765046250,-17485.7236736,0.0002396,3]
[334095194,1722765046260,-151.0,0.0002397,7]
[334095195,1722765046270,-151.0,0.0002397,7]
[334095196,1722765046280,-151.0,0.0002397,7]
[334095197,1722765046294,-550.369978,0.0002397,7]
[334095198,1722765046308,-550.369978,0.0002397,7]
[334095199,1722765046317,-247.094387,0.0002397,7]
[334095200,1722765046327,-247.094387,0.0002397,7]
[334095201,1722765046336,-283.007745,0.0002397,7]
[334095202,1722765046346,-151.0,0.0002397,7]
[334095203,1722765046356,-349.600764,0.0002397,7]
[334095204,1722765046365,-349.600764,0.0002397,7]
[334095205,1722765046377,-260.152992,0.0002397,7]
[334095206,1722765046387,-151.0,0.0002397,7]
[334095207,1722765046396,-791.735581,0.0002397,7]
[334095208,1722765046406,-791.735581,0.0002397,7]
[334095209,1722765046415,-791.735581,0.0002397,7]
[334095210,1722765046425,-791.735581,0.0002397,7]
[334095211,1722765046435,-151.0,0.0002397,7]
[334095212,1722765046444,-151.0,0.0002397,7]
[334095213,1722765046454,-325.319464,0.0002397,7]
[334095214,1722765046464,-325.319464,0.0002397,7]
[334095215,1722765046473,-325.319464,0.0002397,7]
[334095216,1722765046483,-325.319464,0.0002397,7]
[334095217,1722765046492,-152.304178,0.0002397,7]
[334095218,1722765046502,-152.304178,0.0002397,7]
[334095219,1722765046512,-152.304178,0.0002397,7]
[334095220,1722765046521,-152.304178,0.0002397,7]
[334095221,1722765046531,-151.0,0.0002397,7]
[334095222,1722765046544,-151.0,0.0002397,7]
[334095223,1722765046554,-203.65,0.0002397,7]
[334095224,1722765046563,-203.65,0.0002397,7]
[334095225,1722765046573,-203.65,0.0002397,7]
[334095226,1722765046583,-203.65,0.0002397,7]
[334095227,1722765046592,-479.899972,0.0002397,7]
[334095228,1722765046602,-479.899972,0.0002397,7]
[334095229,1722765046612,-151.0,0.0002397,7]
[334095230,1722765046621,-151.0,0.0002397,7]
[334095231,1722765046631,-479.899972,0.0002397,7]
[334095232,1722765046640,-479.899972,0.0002397,7]
[334095233,1722765046650,-593.762654,0.0002397,7]
[334095234,1722765046659,-593.762654,0.0002397,7]
[334095235,1722765046669,-151.0,0.0002397,7]
[334095236,1722765046679,-593.762654,0.0002397,7]
[334095237,1722765046688,-151.0,0.0002397,7]
[334095238,1722765046698,-593.762654,0.0002397,7]
[334095239,1722765046708,-236.233761,0.0002397,7]
[334095240,1722765046717,-236.233761,0.0002397,7]
[334095241,1722765046727,-236.233761,0.0002397,7]
[334095242,1722765046737,-236.233761,0.0002397,7]
[334095243,1722765046746,-218.170873,0.0002397,7]
[334095244,1722765046756,-218.170873,0.0002397,7]
[334095245,1722765046765,-151.0,0.0002397,7]
[334095246,1722765046776,-218.170873,0.0002397,7]
[334095247,1722765046786,-218.170873,0.0002397,7]
[334095248,1722765046797,-163.742897,0.0002397,7]
[334095249,1722765046807,-163.742897,0.0002397,7]
[334095250,1722765046817,-163.742897,0.0002397,7]
[334095251,1722765046827,-163.742897,0.0002397,7]
[334095252,1722765046836,-279.290271,0.0002397,7]
[334095253,1722765046846,-279.290271,0.0002397,7]
[334095254,1722765046856,-151.0,0.0002397,7]
[334095255,1722765046866,-201.431313,0.0002397,7]
[334095256,1722765046876,-201.431313,0.0002397,7]
[334095257,1722765046885,-1600.583935,0.0002397,7]
[334095258,1722765046895,-1600.583935,0.0002397,7]
[334095259,1722765046905,-151.0,0.0002397,7]
[334095260,1722765046915,-178.815353,0.0002397,7]
[334095261,1722765046924,-151.0,0.0002397,7]
[334095262,1722765046934,-178.815353,0.0002397,7]
[334095263,1722765046943,-1586.097472,0.0002397,7]
[334095264,1722765046951,-1586.097472,0.0002397,7]
[334095265,1722765046961,-151.0,0.0002397,7]
[334095266,1722765046971,-151.0,0.0002397,7]
[334095267,1722765046980,-5423.38553,0.0002397,7]
[334095268,1722765046990,-5423.38553,0.0002397,7]
[334095269,1722765047001,-1066.622341,0.0002397,7]
[334095270,1722765047011,-1066.622341,0.0002397,7]
[334095271,1722765047021,-704.566519,0.0002397,7]
[334095272,1722765047032,-17485.7236736,0.0002397,3]
[334095273,1722765047043,-704.566519,0.0002397,7]
[334095274,1722765047053,-1774.992525,0.0002397,7]
[334095275,1722765047063,-1774.992525,0.0002397,7]
[334095276,1722765047073,-233.233985,0.0002397,7]
[334095277,1722765047083,-288.134782,0.0002397,7]
[334095278,1722765047093,-288.134782,0.0002397,7]
[334095279,1722765047108,-321.751671,0.0002397,7]
[334095280,1722765047118,-321.751671,0.0002397,7]
[334095281,1722765047129,-151.0,0.0002397,7]
[334095282,1722765047139,-1031.32671218,0.00023971,10]
[334095283,1722765047150,-151.0,0.00023972,7]
[334095284,1722765047161,-210.73709247,0.00023977,2]
[334095285,1722765047171,-3145.86243674,0.00023977,2]
[334095286,1722765047182,-151.0,0.00023977,7]
[334095287,1722765047192,-151.0,0.00023979,7]
[334095288,1722765047203,-245.570523,0.00023979,7]
[334095289,1722765047212,-151.0,0.00023979,7]
[334095290,1722765047222,-151.0,0.0002398,7]
[334095291,1722765047232,-151.0,0.0002398,7]
[334095292,1722765047242,-151.0,0.0002398,7]
[334095293,1722765047252,-550.369978,0.0002398,7]
[334095294,1722765047263,-550.369978,0.0002398,7]
[334095295,1722765047273,-550.369978,0.0002398,7]
[334095296,1722765047282,-550.369978,0.0002398,7]
[334095297,1722765047294,-247.094387,0.0002398,7]
[334095298,1722765047308,-247.094387,0.0002398,7]
[334095299,1722765047318,-247.094387,0.0002398,7]
[334095300,1722765047328,-247.094387,0.0002398,7]
[334095301,1722765047339,-151.0,0.0002398,7]
[334095302,1722765047349,-151.0,0.0002398,7]
[334095303,1722765047359,-151.0,0.0002398,7]
[334095304,1722765047370,-151.0,0.0002398,7]
[334095305,1722765047382,-151.0,0.0002398,7]
[334095306,1722765047392,-213.267282,0.0002398,7]
[334095307,1722765047402,-151.0,0.0002398,7]
[334095308,1722765047412,-750.930686,0.0002398,7]
[334095309,1722765047422,-750.930686,0.0002398,7]
[334095310,1722765047432,-151.0,0.0002398,7]
[334095311,1722765047442,-213.267282,0.0002398,7]
[334095312,1722765047452,-415.859374,0.0002398,7]
[334095313,1722765047462,-415.859374,0.0002398,7]
[334095314,1722765047472,-213.267282,0.0002398,7]
[334095315,1722765047482,-213.267282,0.0002398,7]
[334095316,1722765047492,-415.859374,0.0002398,7]
[334095317,1722765047503,-415.859374,0.0002398,7]
[334095318,1722765047512,-151.0,0.0002398,7]
[334095319,1722765047523,-151.0,0.0002398,7]
[334095320,1722765047532,-151.0,0.0002398,7]
[334095321,1722765047543,-151.0,0.0002398,7]
[334095322,1722765047553,-151.0,0.0002398,7]
[334095323,1722765047563,-151.0,0.0002398,7]
[334095324,1722765047573,-5423.38553,0.0002398,7]
[334095325,1722765047583,-5423.38553,0.0002398,7]
[334095326,1722765047594,-1066.622341,0.0002398,7]
[334095327,1722765047604,-1066.622341,0.0002398,7]
[334095328,1722765047614,-704.566519,0.0002398,7]
[334095329,1722765047624,-704.566519,0.0002398,7]
[334095330,1722765047634,-1774.992525,0.0002398,7]
[334095331,1722765047644,-1774.992525,0.0002398,7]
[334095332,1722765047654,-288.134782,0.0002398,7]
[334095333,1722765047664,-288.134782,0.0002398,7]
[334095334,1722765047675,-321.751671,0.0002398,7]
[334095335,1722765047686,-321.751671,0.0002398,7]
[334095336,1722765047696,-151.0,0.0002398,7]
[334095337,1722765047707,-174857.236736,0.0002398,3]
[334095338,1722765047717,-888.00243979,0.00023983,2]
[334095339,1722765047727,-154.564865,0.00023983,2]
[334095340,1722765047737,-154.564865,0.00023984,2]
[334095341,1722765047747,-154.564865,0.00023984,2]
[334095342,1722765047757,-154.564865,0.00023984,2]
[334095343,1722765047768,-154.564865,0.00023984,2]
[334095344,1722765047778,-154.564865,0.00023984,2]
[334095345,1722765047789,-1031.32671218,0.00023989,10]
[334095346,1722765047799,-1031.32671217,0.00023989,10]
[334095347,1722765047808,-300.0,0.00023989,2]
[334095348,1722765047819,-300.0,0.00023989,2]
[334095349,1722765047829,-289509.01534462,0.0002399,2]
[334095350,1722765047839,-151.0,0.0002399,7]
[334095351,1722765047849,-151.0,0.0002399,7]
[334095352,1722765047859,-151.0,0.0002399,7]
[334095353,1722765047868,-550.369978,0.0002399,7]
[334095354,1722765047878,-550.369978,0.0002399,7]
[334095355,1722765047888,-247.094387,0.0002399,7]
[334095356,1722765047898,-247.094387,0.0002399,7]
[334095357,1722765047908,-151.0,0.0002399,7]
[334095358,1722765047918,-349.600764,0.0002399,7]
[334095359,1722765047928,-349.600764,0.0002399,7]
[334095360,1722765047938,-151.0,0.0002399,7]
[334095361,1722765047948,-791.735581,0.0002399,7]
[334095362,1722765047958,-791.735581,0.0002399,7]
[334095363,1722765047969,-151.0,0.0002399,7]
[334095364,1722765047979,-325.319464,0.0002399,7]
[334095365,1722765047992,-325.319464,0.0002399,7]
[334095366,1722765048002,-152.304178,0.0002399,7]
[334095367,1722765048012,-152.304178,0.0002399,7]
[334095368,1722765048022,-203.65,0.0002399,7]
[334095369,1722765048033,-203.65,0.0002399,7]
[334095370,1722765048043,-479.899972,0.0002399,7]
[334095371,1722765048054,-151.0,0.0002399,7]
[334095372,1722765048064,-479.899972,0.0002399,7]
[334095373,1722765048073,-593.762654,0.0002399,7]
[334095374,1722765048083,-151.0,0.0002399,7]
[334095375,1722765048092,-593.762654,0.0002399,7]
[334095376,1722765048102,-236.233761,0.0002399,7]
[334095377,1722765048112,-236.233761,0.0002399,7]
[334095378,1722765048122,-218.170873,0.0002399,7]
[334095379,1722765048131,-151.0,0.0002399,7]
[334095380,1722765048141,-218.170873,0.0002399,7]
[334095381,1722765048151,-163.742897,0.0002399,7]
[334095382,1722765048161,-163.742897,0.0002399,7]
[334095383,1722765048170,-279.290271,0.0002399,7]
[334095384,1722765048180,-279.290271,0.0002399,7]
[334095385,1722765048190,-151.0,0.0002399,7]
[334095386,1722765048199,-201.431313,0.0002399,7]
[334095387,1722765048209,-201.431313,0.0002399,7]
[334095388,1722765048219,-1600.583935,0.0002399,7]
[334095389,1722765048229,-1600.583935,0.0002399,7]
[334095390,1722765048239,-151.0,0.0002399,7]
[334095391,1722765048249,-151.0,0.0002399,7]
[334095392,1722765048259,-178.815353,0.0002399,7]
[334095393,1722765048268,-151.0,0.0002399,7]
[334095394,1722765048278,-178.815353,0.0002399,7]
[334095395,1722765048288,-1586.097472,0.0002399,7]
[334095396,1722765048299,-1586.097472,0.0002399,7]
[334095397,1722765048310,-151.0,0.0002399,7]
[334095398,1722765048320,-151.0,0.0002399,7]
[334095399,1722765048330,-151.0,0.0002399,7]
[334095400,1722765048340,-750.930686,0.0002399,7]
[334095401,1722765048350,-213.267282,0.0002399,7]
[334095402,1722765048360,-415.859374,0.0002399,7]
[334095403,1722765048370,-213.267282,0.0002399,7]
[334095404,1722765048381,-415.859374,0.0002399,7]
[334095405,1722765048391,-151.0,0.0002399,7]
[334095406,1722765048400,-151.0,0.0002399,7]
[334095407,1722765048410,-281.709898,0.0002399,7]
[334095408,1722765048420,-5423.38553,0.0002399,7]
[334095409,1722765048431,-5423.38553,0.0002399,7]
[334095410,1722765048440,-1066.622341,0.0002399,7]
[334095411,1722765048450,-1066.622341,0.0002399,7]
[334095412,1722765048460,-704.566519,0.0002399,7]
[334095413,1722765048470,-704.566519,0.0002399,7]
[334095414,1722765048480,-1774.992525,0.0002399,7]
[334095415,1722765048491,-1774.992525,0.0002399,7]
[334095416,1722765048501,-288.134782,0.0002399,7]
[334095417,1722765048511,-288.134782,0.0002399,7]
[334095418,1722765048521,-321.751671,0.0002399,7]
[334095419,1722765048531,-321.751671,0.0002399,7]
[334095420,1722765048541,-151.0,0.0002399,7]
[334095421,1722765048551,-12538.0,0.00023994,2]
[334095422,1722765048561,-151.0,0.00023999,7]